[Event "*** Titled Tuesday Blitz"]
[Site "Chess.com"]
[Date "2020.10.20"]
[Round "6"]
[White "Chernobay_Artem"]
[Black "dretch"]
[Result "1/2-1/2"]
[WhiteElo "2594"]
[BlackElo "2808"]
[TimeControl "180+1"]
[EndTime "11:09:49 PDT"]
[Termination "Game drawn by repetition"]

1. d4 {[%clk 0:02:58.4]} 1... d5 {[%clk 0:02:58.8]} 2. c4 {[%clk 0:02:58.9]}
2... c6 {[%clk 0:02:59]} 3. Nf3 {[%clk 0:02:55.6]} 3... Nf6 {[%clk 0:02:59.3]}
4. Nc3 {[%clk 0:02:56.2]} 4... dxc4 {[%clk 0:02:59.5]} 5. a4 {[%clk 0:02:55.4]}
5... Bf5 {[%clk 0:02:59.6]} 6. e3 {[%clk 0:02:55.7]} 6... e6 {[%clk 0:02:59.4]}
7. Bxc4 {[%clk 0:02:56]} 7... Bb4 {[%clk 0:02:59.9]} 8. O-O {[%clk 0:02:56.4]}
8... O-O {[%clk 0:03:00.1]} 9. Qe2 {[%clk 0:02:56.9]} 9... Nbd7 {[%clk
0:02:59.7]} 10. e4 {[%clk 0:02:56.2]} 10... Bg4 {[%clk 0:03:00]} 11. e5 {[%clk
0:02:45.2]} 11... Nd5 {[%clk 0:02:58.4]} 12. Bd2 {[%clk 0:02:33.5]} 12... Qa5
{[%clk 0:02:54]} 13. Rfc1 {[%clk 0:02:16.9]} 13... f6 {[%clk 0:02:51.7]} 14.
exf6 {[%clk 0:02:00.3]} 14... Rxf6 {[%clk 0:02:51.4]} 15. Ne4 {[%clk 0:02:00.6]}
15... Rg6 {[%clk 0:02:02.5]} 16. Bxb4 {[%clk 0:01:52.8]} 16... Qxb4 {[%clk
0:02:01.3]} 17. Ng3 {[%clk 0:01:43.8]} 17... Bxf3 {[%clk 0:01:18.1]} 18. Qxf3
{[%clk 0:01:41]} 18... Qxb2 {[%clk 0:01:18.2]} 19. Rab1 {[%clk 0:01:19.2]} 19...
Qxd4 {[%clk 0:01:15]} 20. Rxb7 {[%clk 0:01:08.8]} 20... Ne5 {[%clk 0:01:10.8]}
21. Qe4 {[%clk 0:01:07.2]} 21... Qxe4 {[%clk 0:00:56.1]} 22. Nxe4 {[%clk
0:01:08.1]} 22... Rg4 {[%clk 0:00:48.8]} 23. Bxd5 {[%clk 0:00:45.4]} 23... exd5
{[%clk 0:00:28.7]} 24. Nc5 {[%clk 0:00:44.9]} 24... a5 {[%clk 0:00:10]} 25. h3
{[%clk 0:00:32.6]} 25... Rc4 {[%clk 0:00:08.5]} 26. Re1 {[%clk 0:00:28.9]} 26...
Re8 {[%clk 0:00:06.8]} 27. Nd3 {[%clk 0:00:16.6]} 27... Re4 {[%clk 0:00:02.7]}
28. Rxe4 {[%clk 0:00:16.3]} 28... dxe4 {[%clk 0:00:03.6]} 29. Nc5 {[%clk
0:00:15.2]} 29... Nc4 {[%clk 0:00:02.4]} 30. Rc7 {[%clk 0:00:12.1]} 30... e3
{[%clk 0:00:02.3]} 31. fxe3 {[%clk 0:00:11.5]} 31... Rxe3 {[%clk 0:00:01.3]} 32.
Rxc6 {[%clk 0:00:11.9]} 32... Re1+ {[%clk 0:00:02]} 33. Kf2 {[%clk 0:00:11.8]}
33... Ra1 {[%clk 0:00:02.9]} 34. Rc7 {[%clk 0:00:11.1]} 34... Ra2+ {[%clk
0:00:03.8]} 35. Kf3 {[%clk 0:00:11.1]} 35... Ne5+ {[%clk 0:00:03.2]} 36. Ke4
{[%clk 0:00:11.1]} 36... Ng6 {[%clk 0:00:04.1]} 37. g4 {[%clk 0:00:10.2]} 37...
Re2+ {[%clk 0:00:04.1]} 38. Kf3 {[%clk 0:00:09.6]} 38... Rh2 {[%clk 0:00:05]}
39. Kg3 {[%clk 0:00:09.6]} 39... Rc2 {[%clk 0:00:05.7]} 40. Ne6 {[%clk
0:00:05.7]} 40... Rxc7 {[%clk 0:00:05.2]} 41. Nxc7 {[%clk 0:00:06.6]} 41... Ne5
{[%clk 0:00:05.5]} 42. Nd5 {[%clk 0:00:04.8]} 42... Nd7 {[%clk 0:00:05.4]} 43.
Ne7+ {[%clk 0:00:04.7]} 43... Kf7 {[%clk 0:00:05.5]} 44. Nc6 {[%clk 0:00:05.6]}
44... Nb6 {[%clk 0:00:06]} 45. Nxa5 {[%clk 0:00:03.3]} 45... Nxa4 {[%clk
0:00:06.9]} 46. Nc6 {[%clk 0:00:04]} 46... Ke6 {[%clk 0:00:07.5]} 47. Nd4+
{[%clk 0:00:04.5]} 47... Kd5 {[%clk 0:00:07.9]} 48. Nf5 {[%clk 0:00:05.4]} 48...
g6 {[%clk 0:00:08.3]} 49. Nh6 {[%clk 0:00:05.6]} 49... Ke5 {[%clk 0:00:08.6]}
50. Nf7+ {[%clk 0:00:05.9]} 50... Kf6 {[%clk 0:00:08.4]} 51. Nd6 {[%clk
0:00:06.5]} 51... Nc5 {[%clk 0:00:09.2]} 52. Nc4 {[%clk 0:00:06.5]} 52... Ne6
{[%clk 0:00:09.5]} 53. Ne3 {[%clk 0:00:06.8]} 53... Ke5 {[%clk 0:00:10.1]} 54.
Kf3 {[%clk 0:00:06.9]} 54... Ng5+ {[%clk 0:00:09.9]} 55. Kg3 {[%clk 0:00:07.6]}
55... Ke4 {[%clk 0:00:09.7]} 56. Nc4 {[%clk 0:00:07.7]} 56... Kd4 {[%clk
0:00:09.4]} 57. Nd6 {[%clk 0:00:08.1]} 57... Ne6 {[%clk 0:00:09.9]} 58. Nf7
{[%clk 0:00:08]} 58... Ke4 {[%clk 0:00:10.3]} 59. h4 {[%clk 0:00:07.8]} 59...
Kd4 {[%clk 0:00:10.4]} 60. Kf3 {[%clk 0:00:07.3]} 60... Kd3 {[%clk 0:00:10.4]}
61. Ne5+ {[%clk 0:00:06.6]} 61... Kd4 {[%clk 0:00:11]} 62. Nf7 {[%clk
0:00:05.4]} 62... Kd5 {[%clk 0:00:11.3]} 63. h5 {[%clk 0:00:05.8]} 63... g5
{[%clk 0:00:11.2]} 64. h6 {[%clk 0:00:05.3]} 64... Nd4+ {[%clk 0:00:10.8]} 65.
Ke3 {[%clk 0:00:05.3]} 65... Ne6 {[%clk 0:00:11.7]} 66. Kd3 {[%clk 0:00:05.1]}
66... Nf4+ {[%clk 0:00:11.6]} 67. Ke3 {[%clk 0:00:05.5]} 67... Ne6 {[%clk
0:00:12.4]} 68. Kd3 {[%clk 0:00:05.9]} 68... Nf4+ {[%clk 0:00:12.8]} 69. Ke3
{[%clk 0:00:06.4]} 69... Ne6 {[%clk 0:00:13.3]} 1/2-1/2

[Event "*** Titled Tuesday Blitz"]
[Site "Chess.com"]
[Date "2020.10.20"]
[Round "6"]
[White "Skatchkov_V"]
[Black "natelleka"]
[Result "0-1"]
[WhiteElo "2497"]
[BlackElo "2197"]
[TimeControl "180+1"]
[EndTime "11:09:49 PDT"]
[Termination "natelleka won by checkmate"]

1. d4 {[%clk 0:03:00.4]} 1... d5 {[%clk 0:02:59]} 2. c4 {[%clk 0:03:00.7]} 2...
c5 {[%clk 0:02:59.4]} 3. cxd5 {[%clk 0:02:58.8]} 3... Qxd5 {[%clk 0:02:57]} 4.
dxc5 {[%clk 0:02:58.7]} 4... Qxd1+ {[%clk 0:02:56.2]} 5. Kxd1 {[%clk 0:02:59.2]}
5... e5 {[%clk 0:02:56.1]} 6. Nf3 {[%clk 0:02:56.6]} 6... Nc6 {[%clk 0:02:54.9]}
7. e3 {[%clk 0:02:55.4]} 7... Bxc5 {[%clk 0:02:53.6]} 8. Bb5 {[%clk 0:02:55.6]}
8... Bg4 {[%clk 0:02:44.7]} 9. Nc3 {[%clk 0:02:52.2]} 9... O-O-O+ {[%clk
0:02:42.8]} 10. Ke2 {[%clk 0:02:52.8]} 10... f5 {[%clk 0:02:34.4]} 11. h3 {[%clk
0:02:52.2]} 11... Bh5 {[%clk 0:02:31.4]} 12. g4 {[%clk 0:02:23.8]} 12... fxg4
{[%clk 0:02:26.6]} 13. Bxc6 {[%clk 0:02:23.5]} 13... gxf3+ {[%clk 0:02:17.7]}
14. Bxf3 {[%clk 0:02:24.4]} 14... Bxf3+ {[%clk 0:02:14.7]} 15. Kxf3 {[%clk
0:02:25.3]} 15... Nf6 {[%clk 0:02:09.7]} 16. Ke2 {[%clk 0:02:24.7]} 16... Rhe8
{[%clk 0:02:04.2]} 17. Bd2 {[%clk 0:02:25]} 17... Rd7 {[%clk 0:01:55.8]} 18.
Rad1 {[%clk 0:02:25]} 18... Red8 {[%clk 0:01:53.2]} 19. Bc1 {[%clk 0:02:25.4]}
19... a6 {[%clk 0:01:39.9]} 20. Rhg1 {[%clk 0:02:25.3]} 20... Rxd1 {[%clk
0:01:37.9]} 21. Nxd1 {[%clk 0:02:26.2]} 21... Rd7 {[%clk 0:01:32.7]} 22. Rg5
{[%clk 0:02:25]} 22... Re7 {[%clk 0:01:18.5]} 23. b3 {[%clk 0:02:24.4]} 23... h6
{[%clk 0:01:09.4]} 24. Rg6 {[%clk 0:02:24.5]} 24... Ne4 {[%clk 0:01:01.3]} 25.
f3 {[%clk 0:02:17.9]} 25... Ng5 {[%clk 0:00:57.1]} 26. h4 {[%clk 0:02:18.2]}
26... Ne6 {[%clk 0:00:54.9]} 27. Bb2 {[%clk 0:02:18.1]} 27... Nf8 {[%clk
0:00:37.6]} 28. Rg4 {[%clk 0:02:14.2]} 28... Nd7 {[%clk 0:00:35.6]} 29. Nf2
{[%clk 0:02:14]} 29... Nf6 {[%clk 0:00:31.8]} 30. Nd3 {[%clk 0:02:12.1]} 30...
Nxg4 {[%clk 0:00:30.3]} 31. fxg4 {[%clk 0:02:11.8]} 31... Bd6 {[%clk 0:00:30]}
32. e4 {[%clk 0:02:11.1]} 32... Kd7 {[%clk 0:00:28.1]} 33. Ne1 {[%clk
0:02:09.6]} 33... Ke6 {[%clk 0:00:27.3]} 34. Ng2 {[%clk 0:02:09.9]} 34... Rc7
{[%clk 0:00:27]} 35. Kd3 {[%clk 0:02:09.6]} 35... Rf7 {[%clk 0:00:24.3]} 36. Ke2
{[%clk 0:02:09.2]} 36... Rc7 {[%clk 0:00:23.8]} 37. Ne3 {[%clk 0:02:09.1]} 37...
g6 {[%clk 0:00:21.8]} 38. Kd3 {[%clk 0:02:08.7]} 38... Rf7 {[%clk 0:00:21.3]}
39. Ke2 {[%clk 0:02:07.7]} 39... Bc5 {[%clk 0:00:20.8]} 40. Bc1 {[%clk
0:02:08.1]} 40... Bd4 {[%clk 0:00:20.2]} 41. Nd1 {[%clk 0:02:07]} 41... Rc7
{[%clk 0:00:19.8]} 42. Kd2 {[%clk 0:02:04.9]} 42... Rd7 {[%clk 0:00:19.7]} 43.
Ke2 {[%clk 0:02:05.1]} 43... Rc7 {[%clk 0:00:19.1]} 44. Kd2 {[%clk 0:02:05]}
44... b5 {[%clk 0:00:17.9]} 45. Ba3 {[%clk 0:02:03.6]} 45... a5 {[%clk
0:00:17.1]} 46. Bf8 {[%clk 0:02:03.5]} 46... h5 {[%clk 0:00:15.2]} 47. gxh5
{[%clk 0:02:02.6]} 47... gxh5 {[%clk 0:00:15.2]} 48. Bh6 {[%clk 0:02:03.5]}
48... Rf7 {[%clk 0:00:14.4]} 49. Ke2 {[%clk 0:02:02.9]} 49... Rh7 {[%clk
0:00:14.3]} 50. Bg5 {[%clk 0:02:03.3]} 50... Rf7 {[%clk 0:00:13.9]} 51. Bh6
{[%clk 0:01:59.7]} 51... Rc7 {[%clk 0:00:13.6]} 52. Kd3 {[%clk 0:01:58.1]} 52...
a4 {[%clk 0:00:13.6]} 53. bxa4 {[%clk 0:01:51.9]} 53... bxa4 {[%clk 0:00:13.6]}
54. Bg5 {[%clk 0:01:52.2]} 54... Rb7 {[%clk 0:00:13.6]} 55. Kc2 {[%clk
0:01:52.4]} 55... Rf7 {[%clk 0:00:13.6]} 56. Kd3 {[%clk 0:01:51]} 56... Rf3+
{[%clk 0:00:13.3]} 57. Kc2 {[%clk 0:01:49.5]} 57... Ra3 {[%clk 0:00:13]} 58. Kb1
{[%clk 0:01:49.9]} 58... Rh3 {[%clk 0:00:12.2]} 59. Kc2 {[%clk 0:01:49.5]} 59...
Rh1 {[%clk 0:00:11.5]} 60. Bd8 {[%clk 0:01:45.7]} 60... Re1 {[%clk 0:00:11.2]}
61. Bg5 {[%clk 0:01:43.5]} 61... Rxe4 {[%clk 0:00:11.1]} 62. Nc3 {[%clk
0:01:43.7]} 62... Bxc3 {[%clk 0:00:10.7]} 63. Kxc3 {[%clk 0:01:44.4]} 63... Kd5
{[%clk 0:00:10.8]} 64. Kd3 {[%clk 0:01:44.7]} 64... Rb4 {[%clk 0:00:10.3]} 65.
Kc2 {[%clk 0:01:44.7]} 65... Rg4 {[%clk 0:00:10]} 66. Kd3 {[%clk 0:01:44.6]}
66... Rg3+ {[%clk 0:00:09.2]} 67. Ke2 {[%clk 0:01:43.1]} 67... Ke4 {[%clk
0:00:09.6]} 68. Kf2 {[%clk 0:01:43.3]} 68... Ra3 {[%clk 0:00:07.8]} 69. Be7
{[%clk 0:01:44.2]} 69... Rxa2+ {[%clk 0:00:07.7]} 70. Kg3 {[%clk 0:01:45.1]}
70... a3 {[%clk 0:00:06.9]} 71. Bd6 {[%clk 0:01:44.9]} 71... Ra1 {[%clk
0:00:07.4]} 72. Kh3 {[%clk 0:01:45.5]} 72... a2 {[%clk 0:00:07.9]} 73. Kh2
{[%clk 0:01:46]} 73... Kd4 {[%clk 0:00:06.5]} 74. Be7 {[%clk 0:01:45]} 74... Ke4
{[%clk 0:00:06.6]} 75. Bg5 {[%clk 0:01:45.2]} 75... Kf5 {[%clk 0:00:06.5]} 76.
Bd2 {[%clk 0:01:44.8]} 76... e4 {[%clk 0:00:06.8]} 77. Bc3 {[%clk 0:01:45.1]}
77... Rc1 {[%clk 0:00:06.7]} 78. Bh8 {[%clk 0:01:45.3]} 78... Rc2+ {[%clk
0:00:06.8]} 79. Kg3 {[%clk 0:01:45.6]} 79... Rc1 {[%clk 0:00:06.9]} 80. Kf2
{[%clk 0:01:45.9]} 80... a1=Q {[%clk 0:00:06.4]} 81. Bxa1 {[%clk 0:01:45.8]}
81... Rxa1 {[%clk 0:00:07]} 82. Ke3 {[%clk 0:01:46.7]} 82... Ke5 {[%clk
0:00:06.8]} 83. Kf2 {[%clk 0:01:46.9]} 83... Ra3 {[%clk 0:00:07.3]} 84. Ke2
{[%clk 0:01:47.1]} 84... Kd4 {[%clk 0:00:07.4]} 85. Kf2 {[%clk 0:01:48]} 85...
e3+ {[%clk 0:00:07.7]} 86. Kg3 {[%clk 0:01:48.9]} 86... Ra2 {[%clk 0:00:07.8]}
87. Kf3 {[%clk 0:01:49.4]} 87... Kd3 {[%clk 0:00:08]} 88. Kf4 {[%clk 0:01:49.6]}
88... e2 {[%clk 0:00:08.2]} 89. Kg5 {[%clk 0:01:50.5]} 89... e1=Q {[%clk
0:00:08.1]} 90. Kh6 {[%clk 0:01:51.4]} 90... Qe3+ {[%clk 0:00:07.9]} 91. Kg6
{[%clk 0:01:51.9]} 91... Qe6+ {[%clk 0:00:07.8]} 92. Kg5 {[%clk 0:01:52.4]}
92... Ra5+ {[%clk 0:00:08.1]} 93. Kf4 {[%clk 0:01:53]} 93... Qe4+ {[%clk
0:00:08.3]} 94. Kg3 {[%clk 0:01:53.5]} 94... Rf5 {[%clk 0:00:08.3]} 95. Kh2
{[%clk 0:01:53.3]} 95... Rf2+ {[%clk 0:00:08.1]} 96. Kh3 {[%clk 0:01:53.4]}
96... Qe3# {[%clk 0:00:08.2]} 0-1

[Event "*** Titled Tuesday Blitz"]
[Site "Chess.com"]
[Date "2020.10.20"]
[Round "6"]
[White "Radzio1987"]
[Black "Sashadav97"]
[Result "0-1"]
[WhiteElo "2807"]
[BlackElo "2651"]
[TimeControl "180+1"]
[EndTime "11:09:56 PDT"]
[Termination "Sashadav97 won on time"]

1. c4 {[%clk 0:03:00.9]} 1... g6 {[%clk 0:02:59.7]} 2. g3 {[%clk 0:03:00]} 2...
Bg7 {[%clk 0:03:00.1]} 3. Bg2 {[%clk 0:03:00.7]} 3... d6 {[%clk 0:02:43.6]} 4.
Nc3 {[%clk 0:02:57]} 4... Nf6 {[%clk 0:02:44.5]} 5. d4 {[%clk 0:02:56.8]} 5...
O-O {[%clk 0:02:44.8]} 6. Nf3 {[%clk 0:02:57.1]} 6... Nc6 {[%clk 0:02:45.3]} 7.
O-O {[%clk 0:02:57.2]} 7... Bd7 {[%clk 0:02:45.9]} 8. b3 {[%clk 0:02:56.1]} 8...
e5 {[%clk 0:02:41.6]} 9. dxe5 {[%clk 0:02:55.9]} 9... dxe5 {[%clk 0:02:42.1]}
10. Ba3 {[%clk 0:02:55.9]} 10... Re8 {[%clk 0:02:40.9]} 11. Ng5 {[%clk
0:02:47.9]} 11... h6 {[%clk 0:02:37.3]} 12. Nge4 {[%clk 0:02:47.3]} 12... Nxe4
{[%clk 0:02:27.9]} 13. Nxe4 {[%clk 0:02:48.2]} 13... b6 {[%clk 0:02:25.6]} 14.
Nc3 {[%clk 0:02:30.8]} 14... Rb8 {[%clk 0:02:16.2]} 15. Qd2 {[%clk 0:02:27.2]}
15... Qc8 {[%clk 0:01:56.1]} 16. Rad1 {[%clk 0:02:23.7]} 16... Rd8 {[%clk
0:01:55.6]} 17. Nd5 {[%clk 0:02:20]} 17... Kh7 {[%clk 0:01:06.5]} 18. Ne7 {[%clk
0:01:54.7]} 18... Qa6 {[%clk 0:00:54.1]} 19. Bd6 {[%clk 0:01:20.3]} 19... Be8
{[%clk 0:00:41.3]} 20. Nxc6 {[%clk 0:01:13.9]} 20... Bxc6 {[%clk 0:00:39.2]} 21.
Bxc6 {[%clk 0:00:52]} 21... Rxd6 {[%clk 0:00:39]} 22. Bd5 {[%clk 0:00:49.7]}
22... c6 {[%clk 0:00:39.4]} 23. Qb4 {[%clk 0:00:49.6]} 23... Rbd8 {[%clk
0:00:35.7]} 24. Bxf7 {[%clk 0:00:32.7]} 24... Rxd1 {[%clk 0:00:32.8]} 25. Qe7
{[%clk 0:00:33.2]} 25... R1d7 {[%clk 0:00:27.5]} 26. Qe6 {[%clk 0:00:31.5]}
26... Rd6 {[%clk 0:00:27.7]} 27. Bxg6+ {[%clk 0:00:31.2]} 27... Kh8 {[%clk
0:00:28]} 28. Qg4 {[%clk 0:00:30.4]} 28... Qb7 {[%clk 0:00:24.3]} 29. e3 {[%clk
0:00:26.1]} 29... Qe7 {[%clk 0:00:23.4]} 30. h4 {[%clk 0:00:25.7]} 30... Rf8
{[%clk 0:00:18.1]} 31. Bb1 {[%clk 0:00:16.2]} 31... e4 {[%clk 0:00:13.5]} 32.
Bxe4 {[%clk 0:00:15.3]} 32... Qe6 {[%clk 0:00:11.8]} 33. Qxe6 {[%clk 0:00:07.7]}
33... Rxe6 {[%clk 0:00:12.7]} 34. Bg2 {[%clk 0:00:07.3]} 34... Rd6 {[%clk
0:00:11.7]} 35. c5 {[%clk 0:00:06.2]} 35... bxc5 {[%clk 0:00:10.9]} 36. Rc1
{[%clk 0:00:06.3]} 36... Rd2 {[%clk 0:00:09.6]} 37. f4 {[%clk 0:00:06.6]} 37...
Re2 {[%clk 0:00:08.5]} 38. e4 {[%clk 0:00:06.2]} 38... Bd4+ {[%clk 0:00:05.4]}
39. Kh2 {[%clk 0:00:06.6]} 39... Rg8 {[%clk 0:00:06.1]} 40. Rf1 {[%clk
0:00:05.1]} 40... Re3 {[%clk 0:00:06.3]} 41. Bf3 {[%clk 0:00:04.9]} 41... Rg7
{[%clk 0:00:06.4]} 42. Kh3 {[%clk 0:00:05.2]} 42... Kg8 {[%clk 0:00:06.9]} 43.
g4 {[%clk 0:00:05.6]} 43... Kf8 {[%clk 0:00:07.5]} 44. g5 {[%clk 0:00:06]} 44...
hxg5 {[%clk 0:00:07.4]} 45. hxg5 {[%clk 0:00:06.9]} 45... Ke7 {[%clk 0:00:04.9]}
46. Kg4 {[%clk 0:00:07.4]} 46... Rc3 {[%clk 0:00:04.9]} 47. f5 {[%clk
0:00:07.7]} 47... Bf6 {[%clk 0:00:04.9]} 48. g6 {[%clk 0:00:07.9]} 48... Rc2
{[%clk 0:00:05]} 49. Kf4 {[%clk 0:00:08.2]} 49... Rd2 {[%clk 0:00:04]} 50. e5
{[%clk 0:00:07.6]} 50... Rd4+ {[%clk 0:00:02.1]} 51. Be4 {[%clk 0:00:07.9]}
51... Bh4 {[%clk 0:00:02.7]} 52. Ke3 {[%clk 0:00:03.8]} 52... Bg5+ {[%clk
0:00:01.4]} 53. Kf3 {[%clk 0:00:02.8]} 53... c4 {[%clk 0:00:01.7]} 54. Rg1
{[%clk 0:00:01.9]} 54... Bf6 {[%clk 0:00:02.3]} 55. exf6+ {[%clk 0:00:01.6]}
55... Kxf6 {[%clk 0:00:03.2]} 56. bxc4 {[%clk 0:00:02]} 56... Rxc4 {[%clk
0:00:04.1]} 57. Rd1 {[%clk 0:00:01.9]} 57... Rc3+ {[%clk 0:00:04.3]} 58. Bd3
{[%clk 0:00:02]} 58... Rd7 {[%clk 0:00:03.9]} 59. Ke3 {[%clk 0:00:02.3]} 59...
c5 {[%clk 0:00:04.1]} 60. Ke4 {[%clk 0:00:02.7]} 60... Rd4+ {[%clk 0:00:03.9]}
61. Ke3 {[%clk 0:00:02.6]} 61... a5 {[%clk 0:00:03]} 0-1

[Event "*** Titled Tuesday Blitz"]
[Site "Chess.com"]
[Date "2020.10.20"]
[Round "6"]
[White "Borsuk_Konstantin"]
[Black "TheCastleHunter"]
[Result "1-0"]
[WhiteElo "2569"]
[BlackElo "2366"]
[TimeControl "180+1"]
[EndTime "11:09:57 PDT"]
[Termination "Borsuk_Konstantin won by resignation"]

1. d4 {[%clk 0:03:00.9]} 1... Nf6 {[%clk 0:02:59.8]} 2. c4 {[%clk 0:03:01.1]}
2... e6 {[%clk 0:02:59.6]} 3. Nf3 {[%clk 0:03:00.9]} 3... b6 {[%clk 0:02:59.5]}
4. g3 {[%clk 0:03:00.9]} 4... Bb7 {[%clk 0:02:59.8]} 5. Bg2 {[%clk 0:03:00.9]}
5... Be7 {[%clk 0:03:00]} 6. O-O {[%clk 0:03:00.9]} 6... O-O {[%clk 0:02:59.9]}
7. Re1 {[%clk 0:03:00.5]} 7... d5 {[%clk 0:03:00.1]} 8. Ne5 {[%clk 0:02:58.3]}
8... Nbd7 {[%clk 0:02:59.5]} 9. Nc3 {[%clk 0:02:58]} 9... c5 {[%clk 0:02:55.6]}
10. cxd5 {[%clk 0:02:57]} 10... exd5 {[%clk 0:02:55.2]} 11. Bf4 {[%clk 0:02:48]}
11... Nxe5 {[%clk 0:02:53.6]} 12. dxe5 {[%clk 0:02:47.5]} 12... Ne4 {[%clk
0:02:52.7]} 13. Qc2 {[%clk 0:02:04.2]} 13... Nxc3 {[%clk 0:02:44.1]} 14. bxc3
{[%clk 0:02:03.5]} 14... Qc8 {[%clk 0:02:40.2]} 15. h4 {[%clk 0:01:47.1]} 15...
Rd8 {[%clk 0:02:30.6]} 16. Kh2 {[%clk 0:01:40.9]} 16... d4 {[%clk 0:02:30.7]}
17. Bh3 {[%clk 0:01:28.9]} 17... Qc6 {[%clk 0:02:26.4]} 18. Rac1 {[%clk
0:01:23]} 18... h6 {[%clk 0:02:16.1]} 19. Rg1 {[%clk 0:01:13.2]} 19... Qe4
{[%clk 0:01:53.7]} 20. Qxe4 {[%clk 0:01:02.1]} 20... Bxe4 {[%clk 0:01:54.6]} 21.
g4 {[%clk 0:01:01.7]} 21... g5 {[%clk 0:01:51.2]} 22. Bd2 {[%clk 0:00:57.2]}
22... d3 {[%clk 0:01:33.1]} 23. e3 {[%clk 0:00:56.1]} 23... c4 {[%clk 0:01:32]}
24. Bg2 {[%clk 0:00:53.4]} 24... Bxg2 {[%clk 0:01:28.6]} 25. Kxg2 {[%clk
0:00:54.3]} 25... Bc5 {[%clk 0:01:24.4]} 26. hxg5 {[%clk 0:00:52.2]} 26... hxg5
{[%clk 0:01:23.3]} 27. Rh1 {[%clk 0:00:51.9]} 27... Kg7 {[%clk 0:01:21.4]} 28.
Rh5 {[%clk 0:00:51.5]} 28... Be7 {[%clk 0:01:16]} 29. Rch1 {[%clk 0:00:49.5]}
29... Rh8 {[%clk 0:01:16]} 30. f4 {[%clk 0:00:46.4]} 30... b5 {[%clk 0:01:05.6]}
31. f5 {[%clk 0:00:43.2]} 31... f6 {[%clk 0:01:03.8]} 32. e6 {[%clk 0:00:42]}
32... a5 {[%clk 0:01:01.8]} 33. Rxh8 {[%clk 0:00:41.3]} 33... Rxh8 {[%clk
0:01:00.8]} 34. Rxh8 {[%clk 0:00:40.9]} 34... Kxh8 {[%clk 0:01:01.7]} 35. Kf3
{[%clk 0:00:37.4]} 35... b4 {[%clk 0:01:00.4]} 36. Ke4 {[%clk 0:00:35.3]} 36...
bxc3 {[%clk 0:00:47.3]} 37. Bxc3 {[%clk 0:00:33]} 37... Kg8 {[%clk 0:00:39.3]}
38. Bxa5 {[%clk 0:00:21.5]} 38... Bc5 {[%clk 0:00:33.9]} 39. Bd2 {[%clk
0:00:16.9]} 39... Kf8 {[%clk 0:00:25.1]} 40. Kd5 {[%clk 0:00:17]} 40... c3
{[%clk 0:00:25.4]} 41. Bxc3 {[%clk 0:00:16.5]} 41... Bxe3 {[%clk 0:00:25.6]} 42.
a4 {[%clk 0:00:15.3]} 42... d2 {[%clk 0:00:24.9]} 43. Bxd2 {[%clk 0:00:15.7]}
43... Bxd2 {[%clk 0:00:25.8]} 44. Kc6 {[%clk 0:00:14.9]} 44... Ke7 {[%clk
0:00:19.4]} 45. Kb5 {[%clk 0:00:14.8]} 45... Kd6 {[%clk 0:00:19.3]} 46. a5
{[%clk 0:00:15.3]} 46... Be3 {[%clk 0:00:18.7]} 47. Ka6 {[%clk 0:00:14.2]} 47...
Bc5 {[%clk 0:00:17.4]} 48. Kb7 {[%clk 0:00:13.8]} 48... Ke5 {[%clk 0:00:03.7]}
49. a6 {[%clk 0:00:13.4]} 49... Kd6 {[%clk 0:00:03.3]} 50. a7 {[%clk 0:00:12.9]}
50... Bxa7 {[%clk 0:00:04.2]} 51. Kxa7 {[%clk 0:00:13.2]} 51... Ke7 {[%clk
0:00:05.1]} 52. Kb7 {[%clk 0:00:12.9]} 52... Kd6 {[%clk 0:00:05.8]} 53. Kc8
{[%clk 0:00:13]} 53... Ke7 {[%clk 0:00:05.7]} 54. Kc7 {[%clk 0:00:12.4]} 54...
Ke8 {[%clk 0:00:06]} 55. Kc6 {[%clk 0:00:11.9]} 55... Ke7 {[%clk 0:00:05.5]} 56.
Kd5 {[%clk 0:00:11]} 56... Ke8 {[%clk 0:00:05.8]} 57. Kd6 {[%clk 0:00:11.3]}
57... Kd8 {[%clk 0:00:04.1]} 58. e7+ {[%clk 0:00:08.8]} 58... Ke8 {[%clk
0:00:04.4]} 59. Kc6 {[%clk 0:00:09.2]} 59... Kxe7 {[%clk 0:00:03.1]} 60. Kc7
{[%clk 0:00:09.7]} 60... Ke8 {[%clk 0:00:02.7]} 61. Kd6 {[%clk 0:00:09.9]} 61...
Kf7 {[%clk 0:00:03.3]} 62. Kd7 {[%clk 0:00:10.3]} 62... Kf8 {[%clk 0:00:04]} 63.
Ke6 {[%clk 0:00:10.8]} 63... Kg7 {[%clk 0:00:04.9]} 64. Ke7 {[%clk 0:00:11.4]}
64... Kg8 {[%clk 0:00:05.8]} 65. Kxf6 {[%clk 0:00:12]} 65... Kf8 {[%clk
0:00:06.7]} 66. Kxg5 {[%clk 0:00:12.2]} 66... Kg8 {[%clk 0:00:07.6]} 67. f6
{[%clk 0:00:12.3]} 1-0